fUSD/lending_fUSD_20240516
["ID","MTS","AMOUNT","RATE_DAILY","PERIOD"]
[327135670,1715845926018,-670.37,0.00011578,2]
[327135671,1715845926029,-500.0,0.00011578,2]
[327135672,1715845926039,-500.0,0.00011578,2]
[327135673,1715845926050,-500.0,0.00011578,2]
[327135674,1715845926061,-151.0,0.00011578,2]
[327135675,1715845926071,-250.265044,0.00011578,2]
[327135676,1715845926082,-500.0,0.00011578,2]
[327135677,1715845926093,-500.0,0.00011578,2]
[327135678,1715845926103,-500.0,0.00011578,2]
[327135679,1715845926114,-500.0,0.00011578,2]
[327135680,1715845926125,-500.0,0.00011578,2]
[327135681,1715845926136,-500.0,0.00011578,2]
[327135682,1715845926146,-500.0,0.00011578,2]
[327135683,1715845926156,-379.88682389,0.00011578,2]
[327135684,1715845926166,-500.0,0.00011578,2]
[327135685,1715845926177,-500.0,0.00011578,2]
[327135686,1715845926188,-500.0,0.00011578,2]
[327135687,1715845926198,-151.0,0.00011578,2]
[327135688,1715845926208,-500.0,0.00011578,2]
[327135689,1715845926219,-500.0,0.00011578,2]
[327135690,1715845926229,-500.0,0.00011578,2]
[327135691,1715845926238,-500.0,0.00011578,2]
[327135692,1715845926249,-500.0,0.00011578,2]
[327135693,1715845926260,-174.74351041,0.00011578,2]
[327135694,1715845926270,-500.0,0.00011578,2]
[327135695,1715845926281,-500.0,0.00011578,2]
[327135696,1715845926291,-515.25328001,0.00011578,2]
[327135697,1715845926300,-500.0,0.00011578,2]
[327135698,1715845926310,-500.0,0.00011578,2]
[327135699,1715845926320,-500.0,0.00011578,2]
[327135700,1715845926331,-500.0,0.00011578,2]
[327135701,1715845926341,-441.03736526,0.00011578,2]
[327135702,1715845926350,-500.0,0.00011578,2]
[327135703,1715845926360,-500.0,0.00011578,2]
[327135704,1715845926371,-500.0,0.00011578,2]
[327135705,1715845926381,-500.0,0.0001159,2]
[327135706,1715845926391,-500.0,0.0001159,2]
[327135707,1715845926400,-745.94,0.0001159,2]
[327135708,1715845926410,-1009.75,0.0001159,2]
[327135709,1715845926420,-227.88028642,0.0001159,2]
[327135710,1715845926431,-500.0,0.0001159,2]
[327135711,1715845926440,-636.47,0.0001159,2]
[327135712,1715845926451,-851.97,0.0001159,2]
[327135713,1715845926461,-500.0,0.0001159,2]
[327135714,1715845926471,-500.0,0.0001159,2]
[327135715,1715845926481,-500.0,0.0001159,2]
[327135716,1715845926492,-500.0,0.0001159,2]
[327135717,1715845926502,-497.17164244,0.0001159,2]
[327135718,1715845926512,-500.0,0.0001159,2]
[327135719,1715845926522,-999.62,0.0001159,2]
[327135720,1715845926533,-500.0,0.0001159,2]
[327135721,1715845926544,-500.0,0.0001159,2]
[327135722,1715845926555,-4851.98429022,0.00011593,2]
[327135723,1715845926567,-2201.11462264,0.000116,2]
[327135724,1715845926577,-4227.179427,0.000116,2]
[327135725,1715845926587,-300.43,0.000116,2]
[327135726,1715845926597,-19603.71520492,0.000116,2]
[327135727,1715845926606,-4851.98429022,0.00011666,2]
[327135728,1715845926616,-500.0,0.00011672,2]
[327135729,1715845926626,-500.0,0.00011672,2]
[327135730,1715845926635,-500.0,0.00011672,2]
[327135731,1715845926645,-745.94,0.00011672,2]
[327135732,1715845926654,-151.0,0.00011672,2]
[327135733,1715845926664,-1009.75,0.00011672,2]
[327135734,1715845926674,-258.14416,0.00011672,2]
[327135735,1715845926684,-500.0,0.00011672,2]
[327135736,1715845926693,-258.14416,0.00011672,2]
[327135737,1715845926703,-614.08,0.00011672,2]
[327135738,1715845926712,-500.0,0.00011672,2]
[327135739,1715845926723,-500.0,0.00011672,2]
[327135740,1715845926734,-500.0,0.00011672,2]
[327135741,1715845926744,-793.58,0.00011672,2]
[327135742,1715845926754,-636.47,0.00011672,2]
[327135743,1715845926764,-500.0,0.00011672,2]
[327135744,1715845926774,-851.97,0.00011672,2]
[327135745,1715845926784,-500.0,0.00011672,2]
[327135746,1715845926794,-500.0,0.00011672,2]
[327135747,1715845926803,-364.16200775,0.00011672,2]
[327135748,1715845926813,-500.0,0.00011672,2]
[327135749,1715845926823,-500.0,0.00011672,2]
[327135750,1715845926833,-588.2,0.00011672,2]
[327135751,1715845926843,-523.32,0.00011672,2]
[327135752,1715845926853,-500.0,0.00011672,2]
[327135753,1715845926863,-150.0,0.00011672,2]
[327135754,1715845926873,-500.0,0.00011672,2]
[327135755,1715845926883,-511.64,0.00011672,2]
[327135756,1715845926893,-500.0,0.00011672,2]
[327135757,1715845926904,-2738.01,0.00011672,2]
[327135758,1715845926913,-3608.27,0.00011672,2]
[327135759,1715845926923,-500.0,0.00011672,2]
[327135760,1715845926933,-500.0,0.00011672,2]
[327135761,1715845926943,-678.88,0.00011672,2]
[327135762,1715845926953,-1806.07,0.00011672,2]
[327135763,1715845926964,-500.0,0.00011672,2]
[327135764,1715845926977,-516.43,0.00011672,2]
[327135765,1715845926988,-7315.26,0.00011672,2]
[327135766,1715845926998,-841.0,0.00011672,2]
[327135767,1715845927010,-736.45,0.00011672,2]
[327135768,1715845927023,-999.62,0.00011672,2]
[327135769,1715845927033,-669.88,0.00011672,2]
[327135770,1715845927045,-633.32607002,0.00011672,2]
[327135771,1715845927055,-937.61,0.00011672,2]
[327135772,1715845927065,-834.1,0.00011672,2]
[327135773,1715845927075,-621.06,0.00011672,2]
[327135774,1715845927085,-500.0,0.00011672,2]
[327135775,1715845927095,-522.77,0.00011672,2]
[327135776,1715845927105,-500.0,0.00011672,2]
[327135777,1715845927116,-1104.67,0.00011672,2]
[327135778,1715845927126,-500.0,0.00011672,2]
[327135779,1715845927136,-594.67,0.00011672,2]
[327135780,1715845927146,-1615.84,0.00011672,2]
[327135781,1715845927330,-994.71,0.00011672,2]
[327135782,1715845927340,-522.80904584,0.00011672,2]
[327135783,1715845927351,-500.0,0.00011672,2]
[327135784,1715845927360,-1028.95,0.00011672,2]
[327135785,1715845927370,-950.37,0.00011672,2]
[327135786,1715845927381,-1163.53,0.00011672,2]
[327135787,1715845927390,-1102.54,0.00011672,2]
[327135788,1715845927400,-797.35,0.00011672,2]
[327135789,1715845927411,-1717.87,0.00011672,2]
[327135790,1715845927420,-500.0,0.00011672,2]
[327135791,1715845927430,-611.67,0.00011672,2]
[327135792,1715845927439,-500.0,0.00011673,2]
[327135793,1715845927448,-500.0,0.00011673,2]
[327135794,1715845927458,-500.0,0.00011673,2]
[327135795,1715845927467,-151.0,0.00011673,2]
[327135796,1715845927477,-951.32,0.00011673,2]
[327135797,1715845927486,-512.66,0.00011673,2]
[327135798,1715845927495,-151.0,0.00011673,2]
[327135799,1715845927507,-283.35172407,0.00011673,2]
[327135800,1715845927519,-591.17062539,0.00011673,2]
[327135801,1715845927529,-500.0,0.00011673,2]
[327135802,1715845927538,-500.0,0.00011673,2]
[327135803,1715845927547,-500.0,0.00011673,2]
[327135804,1715845927557,-500.0,0.00011673,2]
[327135805,1715845927567,-500.0,0.00011673,2]
[327135806,1715845927576,-708.51,0.00011673,2]
[327135807,1715845927587,-500.0,0.00011673,2]
[327135808,1715845927597,-500.0,0.00011673,2]
[327135809,1715845927607,-478.18801796,0.00011673,2]
[327135810,1715845927616,-500.0,0.00011673,2]
[327135811,1715845927627,-500.0,0.00011673,2]
[327135812,1715845927637,-317.7137943,0.00011673,2]
[327135813,1715845927647,-500.0,0.00011673,2]
[327135814,1715845927658,-500.0,0.00011673,2]
[327135815,1715845927667,-614.08,0.00011673,2]
[327135816,1715845927677,-500.0,0.00011673,2]
[327135817,1715845927687,-500.0,0.00011673,2]
[327135818,1715845927697,-500.0,0.00011673,2]
[327135819,1715845927707,-385.95212818,0.00011673,2]
[327135820,1715845927716,-500.0,0.00011673,2]
[327135821,1715845927727,-635.45,0.00011673,2]
[327135822,1715845927738,-524.64,0.00011673,2]
[327135823,1715845927748,-500.0,0.00011673,2]
[327135824,1715845927757,-500.0,0.00011673,2]
[327135825,1715845927767,-150.5405517,0.00011673,2]
[327135826,1715845927778,-500.0,0.00011673,2]
[327135827,1715845927788,-500.0,0.00011673,2]
[327135828,1715845927799,-500.0,0.00011673,2]
[327135829,1715845927809,-793.58,0.00011673,2]
[327135830,1715845927820,-500.0,0.00011673,2]
[327135831,1715845927830,-633.68644835,0.00011673,2]
[327135832,1715845927840,-827.16,0.00011673,2]
[327135833,1715845927850,-922.24,0.00011673,2]
[327135834,1715845927860,-207.81817001,0.00011673,2]
[327135835,1715845927870,-524.23,0.00011673,2]
[327135836,1715845927881,-500.0,0.00011673,2]
[327135837,1715845927891,-500.0,0.00011673,2]
[327135838,1715845927900,-500.0,0.00011673,2]
[327135839,1715845927911,-563.5,0.00011673,2]
[327135840,1715845927921,-500.0,0.00011673,2]
[327135841,1715845927930,-500.0,0.00011673,2]
[327135842,1715845927939,-505.75,0.00011673,2]
[327135843,1715845927949,-500.0,0.00011673,2]
[327135844,1715845927958,-594.77801982,0.00011673,2]
[327135845,1715845927973,-520.63,0.00011673,2]
[327135846,1715845927982,-920.08,0.00011673,2]
[327135847,1715845927991,-500.0,0.00011673,2]
[327135848,1715845928001,-505.99,0.00011673,2]
[327135849,1715845928013,-580.01,0.00011673,2]
[327135850,1715845928023,-500.0,0.00011673,2]
[327135851,1715845928032,-604.46,0.00011673,2]
[327135852,1715845928043,-500.0,0.00011673,2]
[327135853,1715845928054,-1087.89,0.00011673,2]
[327135854,1715845928064,-588.2,0.00011673,2]
[327135855,1715845928073,-523.32,0.00011673,2]
[327135856,1715845928083,-523.32,0.00011673,2]
[327135857,1715845928094,-523.32,0.00011673,2]
[327135858,1715845928103,-523.32,0.00011673,2]
[327135859,1715845928113,-523.34422301,0.00011673,2]
[327135860,1715845928122,-540.99,0.00011673,2]
[327135861,1715845928131,-500.0,0.00011673,2]
[327135862,1715845928141,-500.0,0.00011673,2]
[327135863,1715845928150,-500.0,0.00011673,2]
[327135864,1715845928160,-500.0,0.00011673,2]
[327135865,1715845928169,-150.0,0.00011673,2]
[327135866,1715845928178,-150.0,0.00011673,2]
[327135867,1715845928188,-248.36946941,0.00011673,2]
[327135868,1715845928199,-500.0,0.00011673,2]
[327135869,1715845928209,-500.0,0.00011673,2]
[327135870,1715845928218,-540.05403779,0.00011673,2]
[327135871,1715845928228,-500.0,0.00011673,2]
[327135872,1715845928237,-530.96,0.00011673,2]
[327135873,1715845928247,-500.0,0.00011673,2]
[327135874,1715845928256,-500.0,0.00011673,2]
[327135875,1715845928266,-670.92,0.00011673,2]
[327135876,1715845928276,-768.88,0.00011673,2]
[327135877,1715845928287,-500.0,0.00011673,2]
[327135878,1715845928297,-931.66,0.00011673,2]
[327135879,1715845928306,-529.08,0.00011673,2]
[327135880,1715845928315,-518.43,0.00011673,2]
[327135881,1715845928325,-693.94,0.00011673,2]
[327135882,1715845928335,-500.0,0.00011673,2]
[327135883,1715845928344,-500.0,0.00011673,2]
[327135884,1715845928353,-472.55804225,0.00011673,2]
[327135885,1715845928363,-500.0,0.00011673,2]
[327135886,1715845928373,-450.69574435,0.00011673,2]
[327135887,1715845928384,-500.0,0.00011673,2]
[327135888,1715845928393,-564.31,0.00011673,2]
[327135889,1715845928402,-511.64,0.00011673,2]
[327135890,1715845928412,-500.0,0.00011673,2]
[327135891,1715845928421,-500.0,0.00011673,2]
[327135892,1715845928431,-500.0,0.00011673,2]
[327135893,1715845928440,-600.08,0.00011673,2]
[327135894,1715845928450,-500.0,0.00011673,2]
[327135895,1715845928459,-500.0,0.00011673,2]
[327135896,1715845928471,-500.0,0.00011673,2]
[327135897,1715845928480,-500.0,0.00011673,2]
[327135898,1715845928489,-500.0,0.00011673,2]
[327135899,1715845928498,-500.0,0.00011673,2]
[327135900,1715845928508,-500.0,0.00011673,2]
[327135901,1715845928518,-172.97808725,0.00011673,2]
[327135902,1715845928527,-534.72,0.00011673,2]
[327135903,1715845928537,-500.0,0.00011673,2]
[327135904,1715845928548,-500.0,0.00011673,2]
[327135905,1715845928559,-532.31,0.00011673,2]
[327135906,1715845928570,-2738.01,0.00011673,2]
[327135907,1715845928581,-3608.27,0.00011673,2]
[327135908,1715845928591,-3608.27,0.00011673,2]
[327135909,1715845928602,-3608.27,0.00011673,2]
[327135910,1715845928611,-3608.27,0.00011673,2]
[327135911,1715845928620,-3608.50627766,0.00011673,2]
[327135912,1715845928631,-644.67,0.00011673,2]
[327135913,1715845928642,-678.1,0.00011673,2]
[327135914,1715845928652,-702.88,0.00011673,2]
[327135915,1715845928661,-500.0,0.00011673,2]
[327135916,1715845928670,-3061.01,0.00011673,2]
[327135917,1715845928679,-3061.01,0.00011673,2]
[327135918,1715845928688,-576.29,0.00011673,2]
[327135919,1715845928697,-203.20895488,0.00011673,2]
[327135920,1715845928706,-678.88,0.00011673,2]
[327135921,1715845928716,-678.88,0.00011673,2]
[327135922,1715845928726,-579.88,0.00011673,2]
[327135923,1715845928736,-678.88,0.00011673,2]
[327135924,1715845928745,-678.88,0.00011673,2]
[327135925,1715845928755,-678.9,0.00011673,2]
[327135926,1715845928763,-666.82,0.00011673,2]
[327135927,1715845928773,-666.82,0.00011673,2]
[327135928,1715845928782,-677.67,0.00011673,2]
[327135929,1715845928793,-1806.07,0.00011673,2]
[327135930,1715845928803,-1806.07,0.00011673,2]
[327135931,1715845928814,-500.0,0.00011673,2]
[327135932,1715845928823,-1806.07,0.00011673,2]
[327135933,1715845928833,-1806.07,0.00011673,2]
[327135934,1715845928842,-1806.30071427,0.00011673,2]
[327135935,1715845928852,-516.43,0.00011673,2]
[327135936,1715845928861,-516.43,0.00011673,2]
[327135937,1715845928871,-516.43,0.00011673,2]
[327135938,1715845928880,-516.43,0.00011673,2]
[327135939,1715845928889,-500.0,0.00011673,2]
[327135940,1715845928898,-516.56428792,0.00011673,2]
[327135941,1715845928907,-951.71,0.00011673,2]
[327135942,1715845928917,-951.71,0.00011673,2]
[327135943,1715845928926,-500.0,0.00011673,2]
[327135944,1715845928935,-500.0,0.00011673,2]
[327135945,1715845928944,-752.56,0.00011673,2]
[327135946,1715845928954,-500.0,0.00011673,2]
[327135947,1715845928964,-7315.26,0.00011673,2]
[327135948,1715845928978,-7315.26,0.00011673,2]
[327135949,1715845928987,-7315.26,0.00011673,2]
[327135950,1715845928996,-7315.26,0.00011673,2]
[327135951,1715845929006,-968.09,0.00011673,2]
[327135952,1715845929016,-7315.41766647,0.00011673,2]
[327135953,1715845929027,-624.98,0.00011673,2]
[327135954,1715845929036,-624.98,0.00011673,2]
[327135955,1715845929046,-841.0,0.00011673,2]
[327135956,1715845929056,-736.45,0.00011673,2]
[327135957,1715845929065,-736.45,0.00011673,2]
[327135958,1715845929075,-736.45,0.00011673,2]
[327135959,1715845929085,-736.45,0.00011673,2]
[327135960,1715845929094,-736.55840236,0.00011673,2]
[327135961,1715845929104,-500.0,0.00011673,2]
[327135962,1715845929113,-500.0,0.00011673,2]
[327135963,1715845929123,-4907.78,0.00011673,2]
[327135964,1715845929134,-1056.29,0.00011673,2]
[327135965,1715845929143,-1056.29,0.00011673,2]
[327135966,1715845929153,-669.88,0.00011673,2]
[327135967,1715845929162,-669.88,0.00011673,2]
[327135968,1715845929171,-669.88,0.00011673,2]
[327135969,1715845929181,-561.96,0.00011673,2]
[327135970,1715845929191,-669.88,0.00011673,2]
[327135971,1715845929201,-2302.3,0.00011673,2]
[327135972,1715845929211,-500.0,0.00011673,2]
[327135973,1715845929221,-500.0,0.00011673,2]
[327135974,1715845929230,-669.90530538,0.00011673,2]
[327135975,1715845929240,-937.61,0.00011673,2]
[327135976,1715845929249,-937.61,0.00011673,2]
[327135977,1715845929258,-937.61,0.00011673,2]
[327135978,1715845929268,-937.61,0.00011673,2]
[327135979,1715845929277,-937.69096614,0.00011673,2]
[327135980,1715845929287,-834.1,0.00011673,2]
[327135981,1715845929297,-866.14,0.00011673,2]
[327135982,1715845929306,-834.1,0.00011673,2]
[327135983,1715845929316,-834.1,0.00011673,2]
[327135984,1715845929326,-834.1,0.00011673,2]
[327135985,1715845929335,-834.16159413,0.00011673,2]
[327135986,1715845929345,-418.22,0.00011673,2]
[327135987,1715845929354,-521.96,0.00011673,2]
[327135988,1715845929363,-8730.78,0.00011673,2]
[327135989,1715845929372,-521.96,0.00011673,2]
[327135990,1715845929382,-537.37,0.00011673,2]
[327135991,1715845929392,-572.13,0.00011673,2]
[327135992,1715845929401,-621.06,0.00011673,2]
[327135993,1715845929410,-621.06,0.00011673,2]
[327135994,1715845929419,-621.06,0.00011673,2]
[327135995,1715845929428,-621.06,0.00011673,2]
[327135996,1715845929438,-621.0971539,0.00011673,2]
[327135997,1715845929448,-500.0,0.00011673,2]
[327135998,1715845929458,-522.77,0.00011673,2]
[327135999,1715845929467,-522.77,0.00011673,2]
[327136000,1715845929478,-522.77,0.00011673,2]
[327136001,1715845929488,-888.56,0.00011673,2]
[327136002,1715845929498,-522.77,0.00011673,2]
[327136003,1715845929507,-522.92048693,0.00011673,2]
[327136004,1715845929516,-500.0,0.00011673,2]
[327136005,1715845929526,-500.0,0.00011673,2]
[327136006,1715845929535,-500.0,0.00011673,2]
[327136007,1715845929544,-671.93,0.00011673,2]
[327136008,1715845929554,-671.93,0.00011673,2]
[327136009,1715845929563,-642.94,0.00011673,2]
[327136010,1715845929572,-500.0,0.00011673,2]
[327136011,1715845929582,-500.0,0.00011673,2]
[327136012,1715845929591,-179.18960777,0.00011673,2]
[327136013,1715845929600,-500.0,0.00011673,2]
[327136014,1715845929610,-1104.67,0.00011673,2]
[327136015,1715845929619,-1104.67,0.00011673,2]
[327136016,1715845929629,-1104.67,0.00011673,2]
[327136017,1715845929638,-1104.67,0.00011673,2]
[327136018,1715845929648,-1104.70216206,0.00011673,2]
[327136019,1715845929657,-858.1,0.00011673,2]
[327136020,1715845929666,-858.1,0.00011673,2]
[327136021,1715845929676,-500.0,0.00011673,2]
[327136022,1715845929685,-500.0,0.00011673,2]
[327136023,1715845929695,-242.91981739,0.00011673,2]
[327136024,1715845929704,-1327.99,0.00011673,2]
[327136025,1715845929714,-1327.99,0.00011673,2]
[327136026,1715845929724,-594.67,0.00011673,2]
[327136027,1715845929734,-594.67,0.00011673,2]
[327136028,1715845929743,-900.38,0.00011673,2]
[327136029,1715845929753,-594.67,0.00011673,2]
[327136030,1715845929763,-594.67,0.00011673,2]
[327136031,1715845929773,-594.90794031,0.00011673,2]
[327136032,1715845929782,-500.0,0.00011673,2]
[327136033,1715845929791,-1615.84,0.00011673,2]
[327136034,1715845929801,-1615.84,0.00011673,2]
[327136035,1715845929811,-1615.84,0.00011673,2]
[327136036,1715845929820,-7297.58,0.00011673,2]
[327136037,1715845929830,-1615.84,0.00011673,2]
[327136038,1715845929839,-1616.03427989,0.00011673,2]
[327136039,1715845929849,-994.71,0.00011673,2]
[327136040,1715845929860,-994.71,0.00011673,2]
[327136041,1715845929869,-994.71,0.00011673,2]
[327136042,1715845929879,-994.71,0.00011673,2]
[327136043,1715845929888,-994.81832633,0.00011673,2]
[327136044,1715845929897,-1868.81,0.00011673,2]
[327136045,1715845929907,-1868.81,0.00011673,2]
[327136046,1715845929916,-500.0,0.00011673,2]
[327136047,1715845929925,-1028.95,0.00011673,2]
[327136048,1715845929935,-1028.95,0.00011673,2]
[327136049,1715845929944,-1028.95,0.00011673,2]
[327136050,1715845929953,-1028.95,0.00011673,2]
[327136051,1715845929963,-1029.18336575,0.00011673,2]
[327136052,1715845929978,-638.38,0.00011673,2]
[327136053,1715845929988,-869.83,0.00011673,2]
[327136054,1715845929998,-950.37,0.00011673,2]
[327136055,1715845930008,-950.37,0.00011673,2]
[327136056,1715845930018,-950.37,0.00011673,2]
[327136057,1715845930027,-950.37,0.00011673,2]
[327136058,1715845930037,-950.55168297,0.00011673,2]
[327136059,1715845930048,-570.11,0.00011673,2]
[327136060,1715845930058,-1163.53,0.00011673,2]
[327136061,1715845930068,-1163.53,0.00011673,2]
[327136062,1715845930077,-1163.53,0.00011673,2]
[327136063,1715845930087,-1163.53,0.00011673,2]
[327136064,1715845930096,-1163.60556386,0.00011673,2]
[327136065,1715845930105,-500.0,0.00011673,2]
[327136066,1715845930115,-500.0,0.00011673,2]
[327136067,1715845930124,-850.0,0.00011673,2]
[327136068,1715845930134,-1102.54,0.00011673,2]
[327136069,1715845930143,-1102.54,0.00011673,2]
[327136070,1715845930152,-1102.54,0.00011673,2]
[327136071,1715845930162,-1102.54,0.00011673,2]
[327136072,1715845930171,-1102.58375098,0.00011673,2]
[327136073,1715845930180,-500.0,0.00011673,2]
[327136074,1715845930190,-797.35,0.00011673,2]
[327136075,1715845930200,-500.0,0.00011673,2]
[327136076,1715845930209,-1717.87,0.00011673,2]
[327136077,1715845930219,-1717.87,0.00011673,2]
[327136078,1715845930229,-1717.87,0.00011673,2]
[327136079,1715845930238,-1717.87,0.00011673,2]
[327136080,1715845930247,-1718.0956386,0.00011673,2]
[327136081,1715845930257,-500.0,0.00011673,2]
[327136082,1715845930266,-500.0,0.00011673,2]
[327136083,1715845930276,-500.0,0.00011673,2]
[327136084,1715845930285,-500.0,0.00011673,2]
[327136085,1715845930295,-405.64371117,0.00011673,2]
[327136086,1715845930304,-500.0,0.00011673,2]
[327136087,1715845930314,-500.0,0.00011673,2]
[327136088,1715845930324,-611.67,0.00011673,2]
[327136089,1715845930333,-611.67,0.00011673,2]
[327136090,1715845930343,-611.67,0.00011673,2]
[327136091,1715845930352,-611.67,0.00011673,2]
[327136092,1715845930361,-611.76071486,0.00011673,2]
[327136093,1715845930370,-500.0,0.00011674,2]
[327136094,1715845930379,-500.0,0.00011674,2]
[327136095,1715845930388,-500.0,0.00011674,2]
[327136096,1715845930398,-500.0,0.00011674,2]
[327136097,1715845930407,-500.0,0.00011674,2]
[327136098,1715845930416,-500.0,0.00011674,2]
[327136099,1715845930425,-500.0,0.00011674,2]
[327136100,1715845930434,-500.0,0.00011674,2]
[327136101,1715845930444,-500.0,0.00011674,2]
[327136102,1715845930453,-500.0,0.00011674,2]
[327136103,1715845930463,-500.0,0.00011674,2]
[327136104,1715845930472,-500.0,0.00011674,2]
[327136105,1715845930482,-500.0,0.00011674,2]
[327136106,1715845930491,-500.0,0.00011674,2]
[327136107,1715845930501,-500.0,0.00011674,2]
[327136108,1715845930510,-500.0,0.00011674,2]
[327136109,1715845930519,-797.17,0.00011674,2]
[327136110,1715845930528,-500.0,0.00011674,2]
[327136111,1715845930538,-500.0,0.00011674,2]
[327136112,1715845930547,-500.0,0.00011674,2]
[327136113,1715845930556,-500.0,0.00011674,2]
[327136114,1715845930565,-500.0,0.00011674,2]
[327136115,1715845930575,-500.0,0.00011674,2]
[327136116,1715845930584,-500.0,0.00011674,2]
[327136117,1715845930594,-500.0,0.00011674,2]
[327136118,1715845930603,-380.77953076,0.00011674,2]
[327136119,1715845930612,-500.0,0.00011674,2]
[327136120,1715845930622,-500.0,0.00011674,2]
[327136121,1715845930631,-500.0,0.00011674,2]
[327136122,1715845930640,-500.0,0.00011674,2]
[327136123,1715845930650,-500.0,0.00011674,2]
[327136124,1715845930660,-500.0,0.00011674,2]
[327136125,1715845930670,-500.0,0.00011674,2]
[327136126,1715845930679,-500.0,0.00011674,2]
[327136127,1715845930690,-500.0,0.00011674,2]
[327136128,1715845930700,-500.0,0.00011674,2]
[327136129,1715845930709,-500.0,0.00011674,2]
[327136130,1715845930720,-500.0,0.00011674,2]
[327136131,1715845930897,-500.0,0.00011674,2]
[327136132,1715845930907,-500.0,0.00011674,2]
[327136133,1715845930916,-500.0,0.00011674,2]
[327136134,1715845930925,-720.99,0.00011674,2]
[327136135,1715845930934,-151.0,0.00011674,2]
[327136136,1715845930944,-500.0,0.00011674,2]
[327136137,1715845930954,-500.0,0.00011674,2]
[327136138,1715845930968,-500.0,0.00011674,2]
[327136139,1715845930986,-500.0,0.00011674,2]
[327136140,1715845930996,-500.0,0.00011674,2]
[327136141,1715845931005,-500.0,0.00011674,2]
[327136142,1715845931014,-500.0,0.00011674,2]
[327136143,1715845931022,-951.32,0.00011674,2]
[327136144,1715845931032,-500.0,0.00011674,2]
[327136145,1715845931042,-500.0,0.00011674,2]
[327136146,1715845931051,-500.0,0.00011674,2]
[327136147,1715845931060,-533.5819079,0.00011674,2]
[327136148,1715845931069,-500.0,0.00011674,2]
[327136149,1715845931078,-512.66,0.00011674,2]
[327136150,1715845931087,-301.41434218,0.00011674,2]
[327136151,1715845931096,-500.0,0.00011674,2]
[327136152,1715845931105,-500.0,0.00011674,2]
[327136153,1715845931114,-500.0,0.00011674,2]
[327136154,1715845931123,-500.0,0.00011674,2]
[327136155,1715845931132,-500.0,0.00011674,2]
[327136156,1715845931142,-500.0,0.00011674,2]
[327136157,1715845931151,-500.0,0.00011674,2]
[327136158,1715845931160,-604.27042956,0.00011674,2]
[327136159,1715845931170,-500.0,0.00011674,2]
[327136160,1715845931180,-500.0,0.00011674,2]
[327136161,1715845931189,-500.0,0.00011674,2]
[327136162,1715845931199,-745.94,0.00011674,2]
[327136163,1715845931208,-500.0,0.00011674,2]
[327136164,1715845931218,-500.0,0.00011674,2]
[327136165,1715845931230,-500.0,0.00011674,2]
[327136166,1715845931241,-500.0,0.00011674,2]
[327136167,1715845931250,-500.0,0.00011674,2]
[327136168,1715845931260,-500.0,0.00011674,2]
[327136169,1715845931270,-151.0,0.00011674,2]